fUST/lending_fUST_20250806
["ID","MTS","AMOUNT","RATE_DAILY","PERIOD"]
[377482216,1754424727009,5453.43380078,0.00025643,2]
[377482217,1754424728188,160.0,0.0002,3]
[377482218,1754424758966,209.72709522,0.00024965,2]
[377482219,1754424803398,156.0,0.00031302,120]
[377482220,1754424813452,1604.17144993,0.00025637,2]
[377482224,1754424862670,12572.66765407,0.00025225,2]
[377482225,1754424862693,12327.33234593,0.00025225,2]
[377482226,1754424888434,7672.66765407,0.00025643,2]
[377482227,1754424911941,356.416721,0.00013699,2]
[377482228,1754424912380,356.416721,0.00020187,2]
[377482232,1754424978418,-194.52531801,0.00025633,10]
[377482233,1754424980301,-5.39468199,0.00025633,10]
[377482234,1754424980323,-160.29761901,0.00025633,10]
[377482237,1754424983138,-6.30238099,0.00025633,10]
[377482238,1754424983160,-151.69761901,0.00025633,10]
[377482239,1754424984804,-152.0,0.00025633,10]
[377482241,1754424987683,-329.20112764,0.00025633,10]
[377482243,1754424995384,-265.95967986,0.00025635,2]
[377482244,1754424999190,-159.04096,0.00025635,2]
[377482245,1754425000840,-152.38,0.00025635,2]
[377482246,1754425003086,-302.0,0.00025633,10]
[377482247,1754425006444,-57.16,0.00025633,10]
[377482248,1754425006467,-242.84,0.00025635,2]
[377482249,1754425008470,-229.28725638,0.00025635,2]
[377482250,1754425010876,-174.27988678,0.00025635,2]
[377482251,1754425013437,-192.12186415,0.00025635,2]
[377482252,1754425016721,-259.47830683,0.00025632,10]
[377482253,1754425018863,-173.09147578,0.00025632,10]
[377482254,1754425020370,-153.52,0.00025632,10]
[377482255,1754425021869,-168.29021739,0.00025632,10]
[377482256,1754425021898,-7.68446461,0.00025635,2]
[377482257,1754425023345,-151.88,0.00025635,2]
[377482258,1754425026957,-163.09,0.00025542,2]
[377482259,1754425028605,-29.03186415,0.00025542,2]
[377482260,1754425028627,-124.48813585,0.00025635,2]
[377482261,1754425030677,-146.86731757,0.00025635,2]
[377482262,1754425030700,-101.2480105,0.00025641,2]
[377482263,1754425032800,-161.66704392,0.00025641,2]
[377482264,1754425034308,-37.08494558,0.00025641,2]
[377482265,1754425034330,-231.54681177,0.00025642,2]
[377482266,1754425036451,-155.37,0.00025642,2]
[377482267,1754425037996,-265.36159108,0.00025642,2]
[377482268,1754425041075,-195.14059369,0.00025642,2]
[377482269,1754425043295,678.41412934,0.00025205,5]
[377482270,1754425044224,-179.483699,0.00025642,2]
[377482271,1754425046895,-173.09730446,0.00025642,2]
[377482272,1754425046918,-105.1625353,0.00025642,2]
[377482273,1754425052514,-165.33392695,0.00025642,2]
[377482274,1754425054959,266.5778796,0.00025121,2]
[377482275,1754425055614,-1.50353775,0.00025642,2]
[377482276,1754425055637,-285.32834173,0.00025642,2]
[377482277,1754425057860,-304.07304996,0.00025642,2]
[377482278,1754425059355,-198.31669987,0.00025642,2]
[377482279,1754425061460,-300.0,0.00025642,2]
[377482280,1754425064120,-112.28190844,0.00025642,2]
[377482281,1754425064142,-217.93581218,0.00025642,2]
[377482282,1754425065718,-160.0,0.00025642,2]
[377482283,1754425070509,-122.06418782,0.00025642,2]
[377482284,1754425070531,-32.61284119,0.00025642,2]
[377482285,1754425074653,-144.41384537,0.00025642,2]
[377482286,1754425074678,-10.33205763,0.00025642,2]
[377482287,1754425076486,-162.91,0.00025641,7]
[377482288,1754425076509,-74.01105253,0.00025642,2]
[377482289,1754425079178,-296.14940659,0.00025642,2]
[377482290,1754425134031,1000.0,0.00024634,2]
[377482291,1754425268438,163.3,0.00025,7]
[377482292,1754425275312,380.0,0.00024658,2]
[377482293,1754425336949,160.0,0.0002,3]
[377482294,1754425337424,160.0,0.0002,3]
[377482295,1754425358362,1844.56552781,0.00025205,5]
[377482296,1754425373692,5000.0,0.00025205,5]
[377482297,1754425388815,5000.0,0.00025205,5]
[377482298,1754425396629,636.97428153,0.00025205,5]
[377482299,1754425405161,5000.0,0.00025205,5]
[377482300,1754425420355,5000.0,0.00025205,5]
[377482301,1754425436368,5000.0,0.00025205,5]
[377482302,1754425452108,3770.58073986,0.00025205,5]
[377482303,1754425458332,275.69,0.00023978,2]
[377482306,1754425483450,5000.0,0.00025205,5]
[377482307,1754425491258,5000.0,0.00025205,5]
[377482312,1754425501385,5000.0,0.00025205,5]
[377482315,1754425509684,5000.0,0.00025205,5]
[377482318,1754425518390,5000.0,0.00025205,5]
[377482322,1754425526166,5000.0,0.00025205,5]
[377482324,1754425527835,389.571251,0.00024619,2]
[377482325,1754425534264,5000.0,0.00025205,5]
[377482326,1754425542498,3183.27805611,0.00025205,5]
[377482327,1754425550593,5000.0,0.00025205,5]
[377482328,1754425558375,446.13627078,0.00025205,5]
[377482329,1754425566896,5000.0,0.00025205,5]
[377482331,1754425582547,5000.0,0.00025205,5]
[377482333,1754425599446,5000.0,0.00025205,5]
[377482334,1754425617372,5000.0,0.00025205,5]
[377482337,1754425633085,5000.0,0.00025205,5]
[377482346,1754425648327,5000.0,0.00025205,5]
[377482350,1754425663510,5000.0,0.00025205,5]
[377482353,1754425669812,1082.75505208,0.00018,2]
[377482355,1754425673683,5851.4407639,0.00018,2]
[377482360,1754425677691,966.02364024,0.00024849,2]
[377482361,1754425678702,5000.0,0.00025205,5]
[377482362,1754425679587,8755.10797118,0.00024774,2]
[377482363,1754425679611,7730.21416364,0.00024774,2]
[377482366,1754425685589,-166.47829061,0.00025517,2]
[377482368,1754425691791,10507.26533021,0.000246,2]
[377482369,1754425692711,415.75730335,0.00010618,2]
[377482370,1754425693970,1346.7632028,0.0002519,2]
[377482371,1754425693994,3653.2367972,0.0002519,2]
[377482372,1754425694494,11198.53190473,0.000125,2]
[377482373,1754425703632,1834.00400861,0.000176,2]
[377482374,1754425706096,278.25591886,0.00014114,2]
[377482375,1754425708060,283.11220623,0.0001,2]
[377482376,1754425708243,2752.85916437,0.0002,2]
[377482377,1754425708266,2184.73655565,0.0002,2]
[377482378,1754425709219,5000.0,0.0002519,2]
[377482379,1754425709455,353.84490557,0.00022,2]
[377482380,1754425711180,4986.74945774,0.0002,2]
[377482382,1754425712937,1065.53976775,0.00025,2]
[377482383,1754425713254,6409.12931329,0.00017,2]
[377482384,1754425713277,20000.0,0.00017,2]
[377482385,1754425713299,20000.0,0.00017,2]
[377482386,1754425713321,20000.0,0.00017,2]
[377482387,1754425713345,20000.0,0.00017,2]
[377482388,1754425713368,6100.39751786,0.00017,2]
[377482389,1754425714343,13899.60248214,0.00025,2]
[377482390,1754425714365,2128.27180355,0.00025,2]
[377482391,1754425714863,157.4253263,8.6e-07,2]
[377482392,1754425714968,62.6807959,8.6e-07,2]
[377482393,1754425714992,94.7445304,8.6e-07,2]
[377482394,1754425715076,2623.69497191,0.00025,2]
[377482395,1754425715108,157.4253263,8.6e-07,2]
[377482396,1754425715205,157.4253263,8.6e-07,2]
[377482397,1754425715355,157.4253263,8.6e-07,2]
[377482398,1754425715472,157.4253263,8.6e-07,2]
[377482399,1754425715635,157.4253263,8.6e-07,2]
[377482400,1754425715872,157.4253263,8.6e-07,2]
[377482401,1754425715899,157.4253263,8.6e-07,2]
[377482402,1754425715931,14051.31141004,0.00018,2]
[377482403,1754425715952,20000.0,0.00018,2]
[377482404,1754425715974,3179.99204419,0.00018,2]
[377482405,1754425716004,157.4253263,8.6e-07,2]
[377482406,1754425716137,10364.0,0.00025,2]
[377482407,1754425716164,208.0533362,0.00025,2]
[377482408,1754425716408,359.1594518,0.00025,2]
[377482411,1754425718454,428.85235838,0.000149,2]
[377482412,1754425718474,152.74006036,0.000149,2]
[377482413,1754425718513,1000.0,0.0001,2]
[377482414,1754425718549,3112.26910352,0.0002495,2]
[377482415,1754425718711,1466.36067763,0.00018,2]
[377482416,1754425718734,20000.0,0.00018,2]
[377482417,1754425718756,7867.49704968,0.00018,2]
[377482418,1754425720929,500.0,0.00025,2]
[377482419,1754425720957,11632.50295032,0.0002,2]
[377482420,1754425720980,4367.49704968,0.0002,2]
[377482421,1754425721526,9319.49899014,0.00025,2]
[377482422,1754425721683,211.07135777,0.00016,2]
[377482423,1754425721780,6101.93260241,0.0002,2]
[377482424,1754425721802,20000.0,0.0002,2]
[377482425,1754425721824,9831.07955805,0.0002,2]
[377482426,1754425721895,658.77100398,0.0001843,2]
[377482427,1754425722425,9510.14943797,0.00025,2]
[377482428,1754425722446,20000.0,0.00025,2]
[377482429,1754425722468,20000.0,0.00025,2]
[377482430,1754425722490,20000.0,0.00025,2]
[377482431,1754425722512,20000.0,0.00025,2]
[377482432,1754425722534,20000.0,0.00025,2]
[377482433,1754425722556,10489.85056203,0.00025,2]
[377482434,1754425723315,9510.14943797,0.0001,2]
[377482435,1754425723337,7890.52450035,0.0001,2]
[377482436,1754425723597,202.63296209,0.00021,2]
[377482437,1754425723837,1003.97824277,0.000215,2]
[377482438,1754425723939,10902.86429479,0.0002465,2]
[377482439,1754425723966,20000.0,0.0002465,2]
[377482440,1754425723991,20000.0,0.0002465,2]
[377482442,1754425747848,795.84,0.0002464,10]
[377482443,1754425759531,663.2,0.0002464,10]
[377482444,1754425762569,5000.0,0.00025205,5]
[377482445,1754425771895,552.66,0.0002464,10]
[377482446,1754425778149,263.9190091,0.00025205,5]
[377482447,1754425783867,626.2,0.0002464,10]
[377482448,1754425809349,580.98,0.0002464,10]
[377482449,1754425810803,151.0,0.00026,19]
[377482450,1754425819728,484.15,0.0002464,10]
[377482610,1754425833474,403.46,0.0002464,10]
[377482618,1754425833547,-2277.36052417,0.00023105,2]
[377482620,1754425833558,-700.75630035,0.0002404,2]
[377482623,1754425833574,-849.24541962,0.0002404,2]
[377482625,1754425833586,-468.57173119,0.0002404,2]
[377482628,1754425833598,-485.14995945,0.0002404,2]
[377482630,1754425833611,-7899.0852387,0.0002404,2]
[377482677,1754425834068,-428.85235838,0.0002404,2]
[377482840,1754425838421,-14068.33899231,0.0002404,2]
[377482841,1754425838431,-300.0,0.00024649,2]
[377482842,1754425838441,-1200.0,0.00024649,2]
[377482843,1754425838450,-473.91868059,0.00024649,2]
[377482844,1754425838459,-109620.25096259,0.0002465,2]
[377482845,1754425838468,-503.38307835,0.0002465,2]
[377482846,1754425838477,-1878.58,0.0002498,3]
[377482847,1754425838486,-939.29,0.0002498,3]
[377482848,1754425838495,-469.65,0.0002498,3]
[377482849,1754425838504,-332.57,0.0002498,3]
[377482850,1754425838513,-166.28,0.0002498,3]
[377482851,1754425838522,-498.89,0.0002498,3]
[377482852,1754425838531,-100000.0,0.0002499,2]
[377482853,1754425838540,-600.0,0.00025,2]
[377482854,1754425838549,-5000.0,0.0002519,2]
[377482855,1754425838559,-202.86075907,0.00025429,2]
[377482856,1754425838568,-16310.15828237,0.0002547,2]
[377482857,1754425838578,-1000.0,0.000255,2]
[377482858,1754425838587,-8268.32527181,0.00025506,2]
[377482859,1754425838597,-1405.93041375,0.00025517,2]
[377482860,1754425838606,-2200.60699428,0.00025551,2]
[377482861,1754425838615,-1364.6,0.00025596,3]
[377482862,1754425838624,-22004.7561495,0.00025607,2]
[377482863,1754425838633,-4158.52106272,0.00025607,2]
[377482864,1754425838641,-3708.8757164,0.00025617,2]
[377482865,1754425838650,-672.85,0.0002562,3]
[377482866,1754425838659,-224.27,0.00025623,3]
[377482867,1754425838668,-495.00652271,0.00025628,2]
[377482868,1754425838677,-160.0,0.00025629,2]
[377482869,1754425838686,-77016.6465234,0.00025633,2]
[377482870,1754425838695,-14554.8237195,0.00025633,2]
[377482871,1754425838704,-1455.87,0.00025642,2]
[377482872,1754425838713,-1000.0,0.00025643,2]
[377482873,1754425838722,-694.04369481,0.00025643,2]
[377482874,1754425838731,-362327.33234593,0.00025643,2]
[377482875,1754425838740,-162.017,0.00025651,10]
[377482876,1754425838749,-500.0,0.00025673,2]
[377482877,1754425838758,-500.0,0.00025673,2]
[377482878,1754425838767,-1265.472806,0.00025782,2]
[377482879,1754425838777,-11002.3780748,0.00025963,2]
[377482880,1754425838786,-2079.26053136,0.00025963,2]
[377482881,1754425838796,-1336.2076461,0.00025967,2]
[377482882,1754425838805,-22004.7561495,0.0002598,2]
[377482883,1754425838814,-4158.52106272,0.0002598,2]
[377482884,1754425838823,-519.9198779,0.00026,2]
[377482885,1754425838832,-19900.0,0.00026,2]
[377482886,1754425838841,-151.0,0.000262,13]
[377482887,1754425838850,-1000.0,0.00026221,2]
[377482888,1754425838859,-1000.0,0.00026221,2]
[377482889,1754425838868,-150.0,0.00026257,2]
[377482890,1754425838877,-3757.16,0.0002635,3]
[377482891,1754425838886,-1878.58,0.0002635,3]
[377482892,1754425838895,-939.3,0.0002635,3]
[377482893,1754425838904,-665.14,0.0002635,3]
[377482894,1754425838913,-332.56,0.0002635,3]
[377482895,1754425838922,-151.0,0.000264,16]
[377482896,1754425838931,-151.0,0.000266,20]
[377482897,1754425838941,-2200.60699428,0.00026674,2]
[377482898,1754425838950,-356.416721,0.00026676,2]
[377482899,1754425838960,-420.0,0.00026713,2]
[377482900,1754425838969,-151.0,0.000268,20]
[377482901,1754425838978,-2729.2,0.00026966,3]
[377482902,1754425838986,-12655.02535889,0.00026966,3]
[377482903,1754425838995,-842.25606042,0.00026966,3]
[377482904,1754425839004,-160.0,0.00026966,3]
[377482905,1754425839013,-448.54,0.00026993,3]
[377482906,1754425839022,-30447.92595213,0.00027,2]
[377482907,1754425839031,-12655.02535889,0.00027,3]
[377482908,1754425839041,-598.29,0.0002724,2]
[377482909,1754425839050,-500.0,0.00027373,2]
[377482910,1754425839059,-22004.7561495,0.00027387,2]
[377482911,1754425839067,-4158.52106272,0.00027387,2]
[377482912,1754425839077,-196.70253501,0.0002739,2]
[377482913,1754425839086,-460.0,0.00027397,2]
[377482914,1754425839095,-460.0,0.00027397,2]
[377482915,1754425839104,-460.0,0.00027397,2]
[377482916,1754425839113,-460.0,0.00027397,2]
[377482917,1754425839123,-460.0,0.00027397,2]
[377482918,1754425839133,-460.0,0.00027397,2]
[377482919,1754425839142,-460.0,0.00027397,2]
[377482920,1754425839157,-468.93676414,0.00027397,2]
[377482921,1754425839167,-460.0,0.00027397,2]
[377482922,1754425839176,-460.0,0.00027397,2]
[377482923,1754425839185,-460.0,0.00027397,2]
[377482924,1754425839195,-460.0,0.00027397,2]
[377482925,1754425839204,-567.56,0.00027397,2]
[377482926,1754425839213,-465.84102802,0.00027397,2]
[377482927,1754425839222,-262.69366919,0.00027397,2]
[377482928,1754425839233,-460.0,0.00027397,2]
[377482929,1754425839242,-460.0,0.00027397,2]
[377482930,1754425839251,-460.0,0.00027397,2]
[377482931,1754425839260,-460.0,0.00027397,2]
[377482932,1754425839270,-460.0,0.00027397,2]
[377482933,1754425839279,-578.65605362,0.00027397,2]
[377482934,1754425839288,-460.0,0.00027397,2]
[377482935,1754425839297,-460.0,0.00027397,2]
[377482936,1754425839306,-460.0,0.00027397,2]
[377482937,1754425839314,-460.0,0.00027397,2]
[377482938,1754425839323,-460.0,0.00027397,2]
[377482939,1754425839333,-460.0,0.00027397,2]
[377482940,1754425839341,-460.0,0.00027397,2]
[377482941,1754425839350,-460.0,0.00027397,2]
[377482942,1754425839359,-460.0,0.00027397,2]
[377482943,1754425839368,-460.0,0.00027397,2]
[377482944,1754425839377,-482.95334249,0.00027397,2]
[377482945,1754425839387,-460.0,0.00027397,2]
[377482946,1754425839396,-343.80118225,0.00027397,2]
[377482947,1754425839406,-460.0,0.00027397,2]
[377482948,1754425839415,-460.0,0.00027397,2]
[377482949,1754425839424,-460.0,0.00027397,2]
[377482950,1754425839433,-460.0,0.00027397,2]
[377482951,1754425839443,-460.0,0.00027397,2]
[377482952,1754425839452,-460.0,0.00027397,2]
[377482953,1754425839461,-460.0,0.00027397,2]
[377482954,1754425839471,-460.0,0.00027397,2]
[377482955,1754425839480,-562.33002131,0.00027397,2]
[377482956,1754425839489,-460.0,0.00027397,2]
[377482957,1754425839498,-460.0,0.00027397,2]
[377482958,1754425839508,-249.62913071,0.00027397,2]
[377482959,1754425839517,-467.86488049,0.00027397,2]
[377482960,1754425839526,-460.0,0.00027397,2]
[377482961,1754425839535,-460.0,0.00027397,2]
[377482962,1754425839545,-460.0,0.00027397,2]
[377482963,1754425839554,-460.0,0.00027397,2]
[377482964,1754425839564,-477.13659063,0.00027397,2]
[377482965,1754425839573,-460.0,0.00027397,2]
[377482966,1754425839582,-460.0,0.00027397,2]
[377482968,1754425839723,-460.0,0.00027397,2]
[377482970,1754425839734,-460.0,0.00027397,2]
[377482972,1754425839744,-460.0,0.00027397,2]
[377482974,1754425839753,-460.0,0.00027397,2]
[377482975,1754425839763,-460.0,0.00027397,2]
[377482977,1754425839772,-460.0,0.00027397,2]
[377482978,1754425839781,-460.0,0.00027397,2]
[377482979,1754425839790,-460.0,0.00027397,2]
[377482980,1754425839800,-460.0,0.00027397,2]
[377482981,1754425839810,-596.73870002,0.00027397,2]
[377482982,1754425839819,-460.0,0.00027397,2]
[377482983,1754425839829,-460.0,0.00027397,2]
[377482984,1754425839838,-582.94014871,0.00027397,2]
[377482985,1754425839847,-460.0,0.00027397,2]
[377482986,1754425839857,-460.0,0.00027397,2]
[377482987,1754425839866,-460.0,0.00027397,2]
[377482989,1754425839875,-518.21,0.00027397,2]
[377482991,1754425839884,-467.92902053,0.00027397,2]
[377482992,1754425839894,-460.0,0.00027397,2]
[377482993,1754425839904,-460.0,0.00027397,2]
[377482994,1754425839914,-460.0,0.00027397,2]
[377482995,1754425839923,-460.0,0.00027397,2]
[377482996,1754425839933,-460.0,0.00027397,2]
[377482997,1754425839945,-500.0,0.00027397,2]
[377482998,1754425839954,-460.0,0.00027397,2]
[377483000,1754425839965,-460.0,0.00027397,2]
[377483001,1754425839975,-246.60971651,0.00027397,2]
[377483004,1754425839985,-460.0,0.00027397,2]
[377483005,1754425839995,-460.0,0.00027397,2]
[377483006,1754425840004,-460.0,0.00027397,2]
[377483007,1754425840013,-460.0,0.00027397,2]
[377483008,1754425840024,-460.0,0.00027397,2]
[377483010,1754425840033,-460.0,0.00027397,2]
[377483011,1754425840043,-460.0,0.00027397,2]
[377483012,1754425840052,-460.0,0.00027397,2]
[377483013,1754425840061,-460.0,0.00027397,2]
[377483014,1754425840070,-460.0,0.00027397,2]
[377483015,1754425840079,-460.0,0.00027397,2]
[377483016,1754425840088,-828.63,0.00027397,2]
[377483017,1754425840097,-460.0,0.00027397,2]
[377483018,1754425840106,-460.0,0.00027397,2]
[377483019,1754425840115,-460.0,0.00027397,2]
[377483020,1754425840125,-460.0,0.00027397,2]
[377483021,1754425840134,-460.0,0.00027397,2]
[377483022,1754425840143,-460.0,0.00027397,2]
[377483023,1754425840153,-460.0,0.00027397,2]
[377483024,1754425840162,-460.0,0.00027397,2]
[377483025,1754425840171,-460.0,0.00027397,2]
[377483026,1754425840182,-460.0,0.00027397,2]
[377483027,1754425840195,-460.0,0.00027397,2]
[377483028,1754425840204,-460.0,0.00027397,2]
[377483029,1754425840213,-840.23,0.00027397,2]
[377483030,1754425840223,-641.07,0.00027397,2]
[377483031,1754425840232,-259.01234341,0.00027397,2]
[377483032,1754425840241,-460.0,0.00027397,2]
[377483033,1754425840251,-460.0,0.00027397,2]
[377483034,1754425840260,-460.0,0.00027397,2]
[377483035,1754425840271,-2971.49,0.00027397,2]
[377483036,1754425840279,-923.71,0.00027397,2]
[377483037,1754425840289,-460.0,0.00027397,2]
[377483038,1754425840298,-460.0,0.00027397,2]
[377483039,1754425840308,-460.0,0.00027397,2]
[377483040,1754425840317,-460.0,0.00027397,2]
[377483041,1754425840326,-460.0,0.00027397,2]
[377483042,1754425840335,-460.0,0.00027397,2]
[377483043,1754425840345,-460.0,0.00027397,2]
[377483044,1754425840354,-460.0,0.00027397,2]
[377483045,1754425840363,-460.0,0.00027397,2]
[377483046,1754425840372,-2220.96,0.00027397,2]
[377483047,1754425840381,-460.0,0.00027397,2]
[377483048,1754425840391,-460.0,0.00027397,2]
[377483049,1754425840400,-460.0,0.00027397,2]
[377483050,1754425840409,-460.0,0.00027397,2]
[377483051,1754425840419,-460.0,0.00027397,2]
[377483052,1754425840428,-460.0,0.00027397,2]
[377483053,1754425840438,-460.0,0.00027397,2]
[377483054,1754425840447,-460.0,0.00027397,2]
[377483055,1754425840456,-460.0,0.00027397,2]
[377483056,1754425840465,-460.0,0.00027397,2]
[377483057,1754425840475,-460.0,0.00027397,2]
[377483058,1754425840484,-460.0,0.00027397,2]
[377483059,1754425840494,-460.0,0.00027397,2]
[377483060,1754425840503,-460.0,0.00027397,2]
[377483061,1754425840513,-460.0,0.00027397,2]
[377483062,1754425840522,-460.0,0.00027397,2]
[377483063,1754425840531,-460.0,0.00027397,2]
[377483064,1754425840541,-460.0,0.00027397,2]
[377483066,1754425840551,-460.0,0.00027397,2]
[377483067,1754425840560,-460.0,0.00027397,2]
[377483068,1754425840570,-692.63,0.00027397,2]
[377483069,1754425840579,-460.0,0.00027397,2]
[377483071,1754425840589,-460.0,0.00027397,2]
[377483073,1754425840597,-460.0,0.00027397,2]
[377483075,1754425840607,-460.0,0.00027397,2]
[377483077,1754425840616,-460.0,0.00027397,2]
[377483078,1754425840625,-460.0,0.00027397,2]
[377483080,1754425840635,-460.0,0.00027397,2]
[377483082,1754425840645,-460.0,0.00027397,2]
[377483084,1754425840654,-460.0,0.00027397,2]
[377483086,1754425840663,-460.0,0.00027397,2]
[377483087,1754425840673,-460.0,0.00027397,2]
[377483088,1754425840682,-460.0,0.00027397,2]
[377483089,1754425840693,-460.0,0.00027397,2]
[377483090,1754425840702,-460.0,0.00027397,2]
[377483091,1754425840711,-470.31131267,0.00027397,2]
[377483092,1754425840721,-460.0,0.00027397,2]
[377483093,1754425840731,-460.0,0.00027397,2]
[377483094,1754425840740,-460.0,0.00027397,2]
[377483095,1754425840749,-460.0,0.00027397,2]
[377483096,1754425840758,-465.17304523,0.00027397,2]
[377483097,1754425840767,-460.0,0.00027397,2]
[377483098,1754425840777,-460.0,0.00027397,2]
[377483099,1754425840786,-460.0,0.00027397,2]
[377483100,1754425840795,-460.0,0.00027397,2]
[377483101,1754425840804,-460.0,0.00027397,2]
[377483102,1754425840813,-460.0,0.00027397,2]
[377483103,1754425840822,-460.0,0.00027397,2]
[377483104,1754425840831,-460.0,0.00027397,2]
[377483105,1754425840840,-460.0,0.00027397,2]
[377483106,1754425840849,-460.0,0.00027397,2]
[377483107,1754425840858,-460.0,0.00027397,2]
[377483108,1754425840868,-929.97,0.00027397,2]
[377483109,1754425840878,-677.37,0.00027397,2]
[377483110,1754425840887,-1117.28,0.00027397,2]
[377483111,1754425840896,-460.0,0.00027397,2]
[377483112,1754425840905,-460.0,0.00027397,2]
[377483113,1754425840914,-460.0,0.00027397,2]
[377483114,1754425840924,-460.0,0.00027397,2]
[377483115,1754425840933,-460.0,0.00027397,2]
[377483116,1754425840944,-460.0,0.00027397,2]
[377483117,1754425840953,-460.0,0.00027397,2]
[377483118,1754425840964,-31796.96,0.00027397,2]
[377483119,1754425840973,-460.0,0.00027397,2]
[377483120,1754425840983,-460.0,0.00027397,2]
[377483121,1754425840992,-649.65,0.00027397,2]
[377483122,1754425841001,-460.0,0.00027397,2]
[377483123,1754425841011,-460.0,0.00027397,2]
[377483124,1754425841020,-2633.74,0.00027397,2]
[377483126,1754425841029,-501.70518215,0.00027397,2]
[377483127,1754425841038,-460.0,0.00027397,2]
[377483128,1754425841047,-460.0,0.00027397,2]
[377483129,1754425841057,-460.0,0.00027397,2]
[377483130,1754425841066,-460.0,0.00027397,2]
[377483131,1754425841076,-473.81354184,0.00027397,2]
[377483132,1754425841085,-460.0,0.00027397,2]
[377483133,1754425841095,-460.0,0.00027397,2]
[377483134,1754425841104,-460.0,0.00027397,2]
[377483135,1754425841113,-575.50485324,0.00027397,2]
[377483136,1754425841122,-460.0,0.00027397,2]
[377483137,1754425841132,-460.0,0.00027397,2]
[377483138,1754425841141,-632.12,0.00027397,2]
[377483139,1754425841153,-466.77127375,0.00027397,2]
[377483140,1754425841167,-460.0,0.00027397,2]
[377483141,1754425841177,-460.0,0.00027397,2]
[377483142,1754425841187,-460.0,0.00027397,2]
[377483143,1754425841196,-229.00745505,0.00027406,2]
[377483144,1754425841207,-151.0,0.00027544,2]
[377483145,1754425841217,-2183.31810187,0.00027544,2]
[377483146,1754425841226,-2264.10087164,0.00027599,2]
[377483147,1754425841236,-2347.87260389,0.00027654,2]
[377483149,1754425841247,-22004.7561495,0.00027661,2]
[377483151,1754425841255,-4158.52106272,0.00027661,2]
[377483153,1754425841264,-460.0,0.00027671,2]
[377483154,1754425841273,-460.0,0.00027671,2]
[377483155,1754425841282,-460.0,0.00027671,2]
[377483156,1754425841291,-460.0,0.00027671,2]
[377483157,1754425841300,-460.0,0.00027671,2]
[377483158,1754425841310,-460.0,0.00027671,2]
[377483159,1754425841319,-460.0,0.00027671,2]
[377483160,1754425841330,-474.15414276,0.00027671,2]
[377483161,1754425841339,-460.0,0.00027671,2]
[377483162,1754425841348,-460.0,0.00027671,2]
[377483163,1754425841357,-410.7705165,0.00027671,2]
[377483164,1754425841366,-460.0,0.00027671,2]
[377483165,1754425841375,-273.45,0.00027671,2]
[377483166,1754425841384,-473.60711005,0.00027671,2]
[377483167,1754425841394,-460.0,0.00027671,2]
[377483168,1754425841403,-460.0,0.00027671,2]
[377483169,1754425841412,-460.0,0.00027671,2]
[377483170,1754425841421,-460.0,0.00027671,2]
[377483171,1754425841430,-460.0,0.00027671,2]
[377483172,1754425841440,-518.21,0.00027671,2]
[377483173,1754425841450,-460.0,0.00027671,2]